[Event "SixDays Budapest March IM A 2025"]
[Site "Budapest"]
[Date "2025.03.26"]
[Round "5.1"]
[White "Li, Yilin"]
[Black "Ilincic, Zlatko"]
[Result "0-1"]
[Annotator "TA"]
[ECO "B54"]
[WhiteElo "1904"]
[BlackElo "2251"]
[PlyCount "103"]
[EventDate "2025.03.23"]
[EventType "tourn"]
[EventCountry "HUN"]
[SourceTitle "playchess.com"]
[Source "ChessBase"]
[SourceQuality "1"]
[TimeControl "5400+30"]

{[%evp 9,103,39,60,49,58,50,60,67,73,55,54,22,72,-6,-1,-7,-6,-18,-13,-65,-72,-80,-70,-70,-46,-39,-47,-80,-70,-83,-65,-64,-77,-109,-99,-99,-70,-88,-40,-20,10,30,40,34,76,72,85,19,33,15,45,45,45,53,52,37,40,50,62,58,61,29,17,-16,41,0,0,0,0,0,0,-34,-23,-34,-19,-82,-55,-82,-77,-90,-86,-141,-136,-314,-301,-563,-562,-557,-542,-537,-535,-472,-468,-1904,0,-509]} 1. e4 {[%emt 0:02:58]} c5 {[%emt 0:00:24]} 2. Nf3 {[%emt 0:00:07]} d6 {[%emt 0:00:33]} 3. d4 {[%emt 0:00:06]} cxd4 {[%emt 0:00:07]} 4. Nxd4 {[%emt 0:00:03]} a6 {[%emt 0:00:17]} 5. c4 {[%emt 0:00:06]} b6 {[%emt 0:01:49]} 6. Nc3 {[%emt 0:01:11] B54: Sicilian: 2...d6 3 d4 cxd4 4 Nxd4, Unusual Lines .} Bb7 {[%emt 0:00:11]} 7. Be3 {[%emt 0:01:25]} Nd7 {[%emt 0:00:24]} 8. Be2 {[%emt 0:01:50] White is slightly better.} e6 {[%emt 0:00:24]} 9. f4 {[%emt 0:05:50]} Ngf6 {[%emt 0:01:04]} 10. Qc2 Rc8 {[%emt 0:00:37]} (10... e5 $11 {keeps the balance.}) 11. Qb1 $146 {[%emt 0:10:27]} ({White should try} 11. O-O $16) (11. b3 Qc7 12. Rc1 Qb8 13. O-O Be7 14. Bf3 O-O 15. g4 h6 16. h4 g6 17. g5 hxg5 18. hxg5 {1-0 Taylor,R (2027)-Thieme,H (2128) EU-chT Seniors 12th 2010 (8)}) 11... Rc7 {[%emt 0:25:11]} 12. O-O {[%emt 0:02:30]} Qa8 {[%emt 0:00:22][%cal Rf6e4]} 13. Bd3 {[%emt 0:03:32]} Nc5 {[%emt 0:01:00]} (13... Ng4 {keeps more tension.} 14. Qe1 Nc5 15. Bc2 Nxe4 16. Nxe4 Bxe4 17. Ba4+ Kd8) 14. Re1 {[%emt 0:25:55]} (14. Nf3 $11) 14... Nfxe4 $15 {[%emt 0:01:41]} (14... Bxe4 15. Nxe4 Ncxe4 16. b4 $11) (14... Ncxe4 15. Na4 $11) 15. Nxe4 {[%emt 0:04:42]} Bxe4 {[%emt 0:01:48]} 16. Bxe4 {[%emt 0:02:37]} Qxe4 {[%emt 0:00:28]} (16... Nxe4 $5 17. Qd3 Qb7 $17) 17. Qxe4 {[%emt 0:03:43]} Nxe4 {[%emt 0:00:08]} 18. Nf3 {[%emt 0:05:54]} Nc5 {[%emt 0:01:25]} 19. Rad1 {[%emt 0:02:20][%cal Of4f5]} Be7 {[%emt 0:00:52]} 20. b3 {[%emt 0:03:14]} O-O {[%emt 0:00:23]} 21. Rd2 {[%emt 0:01:40]} Rb8 {[%emt 0:00:43]} 22. g4 {[%emt 0:01:39]} h6 {[%emt 0:03:28]} 23. f5 {[%emt 0:02:06]} Ne4 {[%emt 0:15:35]} ({Black should try} 23... e5 $17 24. Bf2 g5) 24. Rg2 {[%emt 0:05:53]} Nf6 {[%emt 0:03:31][%cal Be4f6,Bf6h5,Bh5g7][%mdl 32]} 25. fxe6 {[%emt 0:01:24]} fxe6 {[%emt 0:02:38]} 26. g5 {[%emt 0:00:19]} Nh5 {[%emt 0:01:35]} 27. gxh6 {[%emt 0:00:53]} e5 {[%emt 0:00:29]} 28. hxg7 {[%emt 0:01:14]} (28. Ng5 $16) 28... b5 $1 $11 {[%emt 0:02:37]} 29. Nd2 {[%emt 0:03:10]} (29. c5 {simplifies} dxc5 30. Nxe5 Nxg7 31. Rg6) 29... Kh7 {[%emt 0:05:10]} 30. Rf1 {[%emt 0:02:16] [#]} Rg8 $1 31. Rf5 {[%emt 0:02:47]} Nxg7 {[%emt 0:01:21]} 32. Rf7 {[%emt 0:01:09] and Bb6 should not be overlooked} Bd8 {[%emt 0:00:19]} 33. Rxc7 {[%emt 0:00:53]} Bxc7 {[%emt 0:00:05]} 34. Ne4 {[%emt 0:00:13]} Rf8 {[%emt 0:00:49] Prevents Nf6+} 35. cxb5 {[%emt 0:00:48]} axb5 {[%emt 0:00:06]} 36. Nc3 {[%emt 0:00:33]} Rb8 {[%emt 0:04:44]} (36... Nf5 $11 37. Bf2 Rc8) 37. Nd5 {[%emt 0:00:29]} Bd8 {[%emt 0:00:07]} 38. Kf1 {[%emt 0:01:34]} Ra8 {[%emt 0:01:40]} 39. Ke1 {[%emt 0:00:34]} Nf5 {[%emt 0:01:03]} 40. Bg1 {[%emt 0:01:02]} Nh4 {[%emt 0:01:01]} 41. Rf2 {[%emt 0:00:55]} Kg6 {[%emt 0:00:19]} 42. Kf1 {[%emt 0:00:40]} (42. Kd1 $11) 42... Bg5 {[%emt 0:00:48]} 43. Rc2 {[%emt 0:00:41]} Kf5 {[%emt 0:01:32]} 44. Bb6 {[%emt 0:00:33]} Ke4 {[%emt 0:04:19]} 45. Nc7 {[%emt 0:00:29]} (45. Nb4 $142) 45... Rb8 $17 {[%emt 0:00:16]} ({Not} 45... Rf8+ 46. Ke2 $16) 46. Ba5 {[%emt 0:00:34]} (46. Re2+ $17 Kd3 47. Nd5) 46... Be3 $19 {[%emt 0:00:47] [#] Threatens to win with ...Rg8.} 47. Ne6 $2 {[%emt 0:00:29]} (47. Be1 Nf3 48. Re2 Nxe1 49. Kxe1) 47... Re8 {[%emt 0:00:53]} 48. Be1 {[%emt 0:00:29]} Nf3 {[%emt 0:01:16]} 49. Nc7 {[%emt 0:00:16]} Rf8 {[%emt 0:02:01]} 50. Bf2 {[%emt 0:00:35]} Nd2+ {[%emt 0:00:04]} ({Don't take} 50... Nxh2+ 51. Kg2 Ng4 52. Bg1 $19) 51. Ke1 {[%emt 0:00:10]} (51. Rxd2 $142 Bxd2 52. Ke2) 51... Nf3+ $2 {[%emt 0:00:09]} (51... Bxf2+ $2 52. Kxd2 Be3+ 53. Kc3 $19) (51... Rxf2 $19 52. Rc3 Nf3+ (52... Rxh2 $2 53. Nxb5 Kf3 54. Kd1 $19) 53. Kd1 b4 (53... Rxa2 $2 54. Nxb5 Rd2+ 55. Kc1 $19) 54. Rxe3+ Kxe3) 52. Kd1 $2 {[%emt 0:00:00][%mdl 8192] Weighted Error Value: White=0.38/Black=0.21 (precise)   Loses game:     	White=2     	---        Missed win:     	---       	Black=1      Mistake:       	White=7     	Black=3      Inaccurate:     	White=8     	Black=4      OK:         	White=13    	Black=20     Best:        	White=3     	Black=1      Strong:       	---       	Black=2} (52. Kf1 $1 $11) 0-1

[Event "SixDays Budapest March IM A 2025"]
[Site "Budapest"]
[Date "2025.03.26"]
[Round "5.2"]
[White "Singh, Siddharth"]
[Black "Heimisson, Hilmir Freyr"]
[Result "1/2-1/2"]
[Annotator "TA"]
[ECO "C54"]
[WhiteElo "2239"]
[BlackElo "2388"]
[PlyCount "70"]
[EventDate "2025.03.23"]
[EventType "tourn"]
[EventCountry "HUN"]
[SourceTitle "playchess.com"]
[Source "ChessBase"]
[SourceQuality "1"]
[TimeControl "5400+30"]

{[%evp 11,70,12,24,22,28,12,20,-4,55,23,141,124,183,176,182,180,183,189,186,181,183,183,177,175,222,218,304,300,300,227,218,66,76,64,198,64,53,2,109,111,95,109,114,107,131,116,164,149,168,145,156,27,27,27,148,8,8,8,8,8,8]} 1. e4 {[%emt 0:00:02]} e5 {[%emt 0:05:33]} 2. Nf3 {[%emt 0:00:07]} Nc6 {[%emt 0:01:24]} 3. Bc4 {[%emt 0:00:07]} Bc5 {[%emt 0:00:41]} 4. c3 {[%emt 0:00:06]} Nf6 {[%emt 0:00:10]} 5. d3 {[%emt 0:00:05][%cal Bd2d3,Bd3d4,Bd4e5,Be5f6][%mdl 32]} d6 {[%emt 0:00:24]} 6. O-O {[%emt 0:00:06]} a6 {[%emt 0:00:31]} 7. Re1 $1 {[%emt 0:00:36][%mdl 4] 7.Re1 is the recent fashion. C54: Giuoco Piano: 4 c3 Nf6, main lines with 5 d4 and 5 d3.} Ba7 {[%emt 0:01:05]} 8. h3 {[%emt 0:06:31]} h6 {[%emt 0:02:32]} 9. d4 {[%emt 0:01:43]} g5 {[%emt 0:26:54]} (9... O-O $11) 10. dxe5 {[%emt 0:04:24]} (10. Bd5 {simplifies} g4 11. hxg4 Nxg4 12. Na3) 10... g4 {[%emt 0:02:24]} (10... Nxe5 $11 11. Nxe5 dxe5) 11. exf6 $16 {[%emt 0:11:08]} gxf3 {[%emt 0:00:08]} (11... Qxf6 $16 12. hxg4 Ne5) 12. e5 $1 $18 {[%emt 0:01:35]} (12. Qxf3 Ne5 13. Qg3 Qxf6 $14 (13... Nxc4 $2 14. Qg7 $18)) 12... Nxe5 {[%emt 0:09:18]} 13. Qxf3 {[%emt 0:00:31]} Be6 {[%emt 0:03:35] [#]} 14. Rxe5 {[%emt 0:00:15][%mdl 512]} dxe5 {[%emt 0:00:23]} 15. Bxe6 {[%emt 0:00:06]} fxe6 {[%emt 0:02:15]} 16. Nd2 $146 {[%emt 0:08:40]} (16. Qxb7 Qd1+ 17. Kh2 Bxf2 18. Qc6+ Kd8 (18... Kf7 $2 19. Qd7+ Qxd7 20. Nd2 $19) 19. Qxa8+ Kd7 20. h4 h5 (20... Rxa8 $2 21. Bg5 $19) (20... Qg1+ $2 21. Kh3 $19)) (16. Qh5+ Kd7 17. Qxe5 Rf8 18. Bf4 Qxf6 19. Qxc7+ Ke8 20. g3 Rf7 21. Qc4 e5 22. Qe4 {0-1 De Silva,L (2085)-Shevchenko,K (2605) Titled Tuesday intern op 13th July blitz 2021 (3)}) 16... Qd7 {[%emt 0:08:36]} 17. Qxb7 {[%emt 0:07:25]} O-O {[%emt 0:02:04] A sharp opening} (17... Qd5 18. Qxc7 (18. Qxa6 $2 Bxf2+ 19. Kxf2 Rxa6 $19) 18... Qc5 19. Qxc5 Bxc5) 18. Qe4 {[%emt 0:00:07]} (18. Qxa6 $2 Bxf2+ (18... Rxf6 19. Kh2 $17) 19. Kxf2 Rxf6+ (19... Rxa6 $2 20. Ne4 $19) 20. Kg3 Rxa6 $19) 18... Rad8 {[%emt 0:12:52]} 19. Qg6+ {[%emt 0:08:19]} (19. Qxe5 Qd5 20. Qg3+ (20. Qxc7 Rf7 $16) 20... Qg5 21. Qxc7 Bb8 $16) 19... Kh8 {[%emt 0:00:00]} 20. Ne4 {[%emt 0:00:06]} (20. Qxh6+ Qh7 21. Qxh7+ Kxh7 $14) 20... Qh7 {[%emt 0:02:45]} 21. Qxh7+ {[%emt 0:00:10]} (21. Qxh6 Rd1+ 22. Kh2 Rg8 $11) (21. Qg4 $1 $18 {is more deadly.}) 21... Kxh7 $16 {[%emt 0:00:02]} 22. Kf1 {[%emt 0:00:01]} Rd1+ {[%emt 0:07:41]} 23. Ke2 {[%emt 0:00:01]} Rfd8 {[%emt 0:00:10]} 24. b3 {[%emt 0:15:15]} (24. f7 $14 Rg1 25. Bg5 Rxa1 26. Bxd8) 24... a5 {[%emt 0:06:24]} (24... Rg1 $1 $11 {remains equal.} 25. g3 Rdd1) 25. Bb2 {[%emt 0:01:19] Chess con chili.} Rxa1 {[%emt 0:00:06]} 26. Bxa1 {[%emt 0:00:02][%mdl 4096] Endgame KRB-KBN} a4 {[%emt 0:00:10] [#]} 27. Bb2 $1 {[%emt 0:00:01]} (27. bxa4 Rb8 28. c4 Bd4 29. Bxd4 exd4 $14) 27... axb3 {[%emt 0:00:49]} 28. axb3 {[%emt 0:00:02]} Rb8 {[%emt 0:00:28]} (28... Kg6 $16 {keeps fighting.}) 29. b4 $18 {[%emt 0:02:34]} ({Don't do} 29. c4 $6 Bd4 30. Ba3 (30. Bxd4 exd4 31. Kd3 e5 $14) 30... Kg6 $14) 29... Kg6 {[%emt 0:01:39]} 30. Bc1 {[%emt 0:00:27]} Ra8 {[%emt 0:01:09]} 31. Be3 {[%emt 0:04:56]} (31. Bd2 $16) 31... Bxe3 $11 {[%emt 0:00:01]} 32. Kxe3 {[%emt 0:00:22] aiming for Kd3.} Ra1 {[%emt 0:00:06] [#]} (32... h5 $1 $11) 33. f3 {[%emt 0:00:38]} ({White should play} 33. Kd3 $1 $16 {[%cal Rd3c4]}) 33... Ra2 {[%emt 0:00:31] The position is equal.} 34. g3 {[%emt 0:00:12]} Rh2 {[%emt 0:01:00]} 35. h4 {[%emt 0:00:01]} Rh1 $1 {[%emt 0:00:15] Weighted Error Value: White=0.35/Black=0.33  Mistake:       	White=4     	Black=7      Inaccurate:     	White=2     	Black=1      OK:         	White=8     	Black=8      Best:        	White=2     	Black=4      Strong:       	White=3     	Black=1      Brilliant:      	White=1     	---} 1/2-1/2

[Event "SixDays Budapest March IM A 2025"]
[Site "Budapest"]
[Date "2025.03.26"]
[Round "5.3"]
[White "Md Imran"]
[Black "Karacsonyi, Bank"]
[Result "1-0"]
[Annotator "TA"]
[ECO "D03"]
[WhiteElo "2421"]
[BlackElo "2162"]
[PlyCount "113"]
[EventDate "2025.03.23"]
[EventType "tourn"]
[EventCountry "HUN"]
[SourceTitle "playchess.com"]
[Source "ChessBase"]
[SourceQuality "1"]
[TimeControl "5400+30"]

{[%evp 9,113,25,27,0,28,-2,0,0,0,0,0,0,32,45,55,62,69,68,53,78,68,64,79,49,151,139,143,137,156,135,166,159,160,161,157,160,194,173,318,312,312,311,627,634,755,558,558,399,381,380,384,355,355,344,356,321,354,276,344,328,341,318,392,385,390,408,416,407,452,459,490,450,454,449,486,475,470,501,500,505,507,497,580,561,814,814,803,769,859,987,1005,968,972,941,1018,953,1118,879,827,783,1241,1363,1239,1202,973,912]} 1. d4 {[%emt 0:01:37]} Nf6 {[%emt 0:00:05]} 2. Bg5 {[%emt 0:00:33]} d5 {[%emt 0:00:36]} 3. Nf3 {[%emt 0:00:13]} Nbd7 {[%emt 0:01:56]} 4. e3 {[%emt 0:00:15]} h6 {[%emt 0:01:15]} 5. Bh4 {[%emt 0:00:15]} c5 {[%emt 0:01:23]} 6. Nbd2 {[%emt 0:02:03] D03: 1 d4 d5 2 Nf3 Nf6 3 Bg5, including Torre Attack with early ...d5.} Qb6 {[%emt 0:02:40]} (6... g5 $5 7. Bg3 $8 g4 $11) 7. Rb1 {[%emt 0:02:32]} g5 {[%emt 0:03:17]} 8. Bg3 {[%emt 0:00:34] The position is equal.} Bg7 {[%emt 0:01:11]} 9. c3 {[%emt 0:00:29]} O-O $146 {[%emt 0:03:02]} (9... Nh5 10. Bd3 Nxg3 11. hxg3 a6 12. Qc2 Qc7 13. O-O b6 14. Rfe1 Bb7 15. Nh2 Rb8 {0-1 Lungu,T-Kabanova,I (1650) Centrocoop June op-B 1998}) 10. Bd3 {[%emt 0:05:16]} c4 {[%emt 0:02:54]} 11. Bc2 {[%emt 0:00:16]} Qe6 {[%emt 0:07:25]} 12. b3 {[%emt 0:04:32]} cxb3 {[%emt 0:12:35]} 13. axb3 {[%emt 0:00:19]} Ne4 {[%emt 0:03:50]} 14. Nxe4 {[%emt 0:01:07]} dxe4 {[%emt 0:00:21]} 15. Nd2 {[%emt 0:00:02][%cal Oh2h4]} f5 {[%emt 0:00:23]} 16. O-O {[%emt 0:00:06]} b6 {[%emt 0:03:24] White leaves nothing to chance now.} (16... Qc6 $14) 17. f3 $16 {[%emt 0:00:59]} Bb7 {[%emt 0:00:36]} 18. fxe4 {[%emt 0:00:16]} fxe4 {[%emt 0:00:20]} 19. Qe2 {[%emt 0:00:17]} Rxf1+ {[%emt 0:04:33]} 20. Rxf1 {[%emt 0:00:02][%csl Oe4] White attacks a weakness} ({But not} 20. Qxf1 Rc8 $16) 20... Nf6 {[%emt 0:00:36]} 21. c4 {[%emt 0:01:22] White is more active.} Qg4 {[%emt 0:01:38]} 22. Qe1 {[%emt 0:00:49]} Rc8 {[%emt 0:05:55]} 23. Be5 {[%emt 0:00:29]} Nd7 {[%emt 0:09:51]} (23... Rf8 {was necessary.} 24. d5 b5) 24. Bxg7 $18 {[%emt 0:00:41]} Kxg7 {[%emt 0:00:02]} 25. Qa1 {[%emt 0:00:42] [#]} Qe2 $2 {[%emt 0:05:24]} (25... Nf6 26. d5 (26. Qxa7 Rc7 $18) 26... Bxd5) 26. Rf2 {[%emt 0:00:47]} (26. Bxe4 Qxe3+ (26... Bxe4 27. d5+ Nf6 28. Nxe4 $14) 27. Kh1 Bxe4 $17) 26... Qg4 {[%emt 0:02:00]} 27. Qxa7 {[%emt 0:00:25]} Bc6 {[%emt 0:00:11]} 28. Qa1 {[%emt 0:01:07] Hoping for d5+.} Nf6 {[%emt 0:02:15]} 29. d5 {[%emt 0:00:37]} Bxd5 {[%emt 0:00:53]} 30. Bd1 {[%emt 0:00:03]} Qd7 {[%emt 0:00:48]} 31. cxd5 {[%emt 0:00:02]} Qxd5 {[%emt 0:00:11]} 32. Nc4 {[%emt 0:00:35][%cal Bd2c4,Bc4e3,Be3f5][%mdl 32]} Qc5 {[%emt 0:03:05]} 33. Qd4 {[%emt 0:07:44]} Qxd4 {[%emt 0:04:06]} 34. exd4 {[%emt 0:00:40]} b5 {[%emt 0:00:19]} 35. Ne3 {[%emt 0:00:04]} Rc3 {[%emt 0:00:29]} 36. Nf5+ {[%emt 0:00:20]} Kf8 {[%emt 0:00:06]} 37. Nxh6 {[%emt 0:00:21]} Rd3 {[%emt 0:00:37]} 38. Bc2 {[%emt 0:00:54]} Rxd4 {[%emt 0:00:08]} 39. Nf5 {[%emt 0:00:13] White is clearly winning.} Rd7 {[%emt 0:01:37]} 40. Ng3 {[%emt 0:00:28]} e3 {[%emt 0:00:31]} 41. Re2 {[%emt 0:00:04]} Nd5 {[%emt 0:00:26]} 42. Be4 {[%emt 0:00:05]} Nf4 {[%emt 0:00:55] [#] ( -> ...Rd1+)} 43. Rxe3 {[%emt 0:00:05]} Rd2 {[%emt 0:00:17]} 44. Kf1 {[%emt 0:00:33]} Rb2 {[%emt 0:00:32]} 45. Bf3 {[%emt 0:00:45]} e6 {[%emt 0:00:34]} 46. Nh5 {[%emt 0:00:24]} Kf7 {[%emt 0:00:52]} 47. Nxf4 {[%emt 0:00:04]} gxf4 {[%emt 0:00:03][%mdl 4096] Endgame KRB-KR} 48. Re4 {[%emt 0:00:05]} Rxb3 {[%emt 0:00:07]} 49. Rxf4+ {[%emt 0:00:02]} Kg7 {[%emt 0:00:18]} 50. Re4 {[%emt 0:00:02]} Kf6 {[%emt 0:00:06]} 51. h4 {[%emt 0:00:14]} b4 {[%emt 0:00:10]} 52. Kf2 {[%emt 0:00:17]} Rb1 {[%emt 0:00:10]} 53. Re1 {[%emt 0:00:18]} Rb2+ {[%emt 0:00:05]} 54. Kg3 {[%emt 0:00:03]} b3 {[%emt 0:00:29]} 55. Re3 {[%emt 0:00:05]} Rb1 {[%emt 0:00:19]} 56. Be4 {[%emt 0:00:01]} Rb2 {[%emt 0:00:07]} 57. Rf3+ {[%emt 0:00:07] Weighted Error Value: White=0.16 (very precise) /Black=0.41  Mistake:       	---       	Black=3      Inaccurate:     	White=1     	Black=3      OK:         	White=24    	Black=11     Best:        	White=2     	Black=1} 1-0

[Event "SixDays Budapest March IM A 2025"]
[Site "Budapest"]
[Date "2025.03.26"]
[Round "5.4"]
[White "Nakahara, Kan"]
[Black "Mrithyunjay Mahadevan"]
[Result "1-0"]
[Annotator "TA"]
[ECO "C67"]
[WhiteElo "2113"]
[BlackElo "2295"]
[PlyCount "107"]
[EventDate "2025.03.23"]
[EventType "tourn"]
[EventCountry "HUN"]
[SourceTitle "playchess.com"]
[Source "ChessBase"]
[SourceQuality "1"]
[TimeControl "5400+30"]

{[%evp 18,107,31,34,46,28,16,24,46,13,6,16,28,0,29,25,17,27,20,25,25,0,4,9,32,-5,25,32,29,53,54,36,94,70,71,66,61,51,87,89,96,95,90,84,122,60,85,66,68,69,77,68,100,75,175,166,155,135,993,607,1307,1306,1302,1303,1287,1288,1047,343,360,353,352,337,372,357,492,490,514,508,5546,5547,5306,1387,887,873,5539,5539,5414,5110,5531,5531,5218,5206]} 1. e4 {[%emt 0:00:02]} e5 {[%emt 0:02:21]} 2. Nf3 {[%emt 0:00:03]} Nc6 {[%emt 0:00:05]} 3. Bb5 {[%emt 0:00:04]} Nf6 {[%emt 0:00:05]} 4. O-O {[%emt 0:00:17]} Nxe4 {[%emt 0:00:06]} 5. Re1 {[%emt 0:00:42]} Nd6 {[%emt 0:00:06]} 6. Nxe5 {[%emt 0:00:11]} Nxe5 {[%emt 0:00:05]} 7. Rxe5+ {[%emt 0:00:04]} Be7 {[%emt 0:00:06]} 8. Bf1 {[%emt 0:00:09]} O-O {[%emt 0:00:09]} 9. d4 {[%emt 0:00:06]} Bf6 {[%emt 0:00:47]} 10. Re1 {[%emt 0:00:24]} b6 {[%emt 0:02:52] C67: Ruy Lopez: Berlin Defence: 4 0-0 Nxe4.} 11. c3 {[%emt 0:01:34]} Bb7 {[%emt 0:00:54]} 12. Bf4 {[%emt 0:01:01]} Nf5 {[%emt 0:02:41][%cal Bd6f5,Bf5g7,Bg7e6][%mdl 32] White has an edge.} 13. Qg4 $146 {[%emt 0:02:05]} ({Predecessor:} 13. Nd2 Bg5 14. Qg4 Bxf4 15. Qxf4 Nh4 16. g3 Ng6 17. Qf5 d6 18. Bg2 Bxg2 19. Kxg2 {1-0 Mollo Figueroa,N (1782)-Vizcarra Quispe,R (1776) South America-ch (Women) 2nd 2024 (4)}) 13... g6 {[%emt 0:01:58]} 14. Nd2 {[%emt 0:12:15]} h5 {[%emt 0:06:08]} 15. Qh3 {[%emt 0:01:18]} d6 {[%emt 0:01:18]} 16. Bd3 {[%emt 0:09:59]} Ng7 {[%emt 0:02:26]} 17. Ne4 {[%emt 0:07:37]} Be7 {[%emt 0:00:31]} 18. Qe3 {[%emt 0:15:14]} Re8 {[%emt 0:03:29]} 19. Qd2 {[%emt 0:05:15]} Ne6 {[%emt 0:03:47]} 20. Bh6 $1 {[%emt 0:01:14]} Qd7 {[%emt 0:03:13]} 21. Re2 {[%emt 0:04:16]} c5 {[%emt 0:03:08]} 22. dxc5 {[%emt 0:06:19]} bxc5 {[%emt 0:03:08][%cal Bb6c5,Bc5c4,Bc4d3][%mdl 32]} 23. Rae1 {[%emt 0:01:39]} Qc6 $1 {[%emt 0:00:48]} 24. f4 $1 {[%emt 0:05:41][%cal Bf2f4,Bf4f5,Bf5e6][%mdl 32]} d5 {[%emt 0:10:27] [#]} ({Black should try} 24... c4 $14 25. Bb1 Qb5) 25. f5 $1 {[%emt 0:06:41]} c4 $1 {[%emt 0:05:03]} (25... dxe4 26. Bxe4 Qa6 27. fxe6 $18) 26. fxe6 {[%emt 0:05:01]} cxd3 {[%emt 0:00:51] [#]} 27. Qf4 $1 {[%emt 0:04:05] Really sharp!} Kh7 $1 {[%emt 0:07:53]} (27... dxe2 28. Qxf7+ Kh8 29. Qg7#) (27... fxe6 $2 28. Nf6+ Bxf6 29. Qxf6 $18) 28. Ng5+ {[%emt 0:03:51]} Bxg5 {[%emt 0:00:08]} (28... Kxh6 29. Nxf7+ Kg7 30. Qh6+ Kg8 31. Qh8#) 29. Bxg5 {[%emt 0:00:14]} f5 {[%emt 0:00:11] Black is weak on the dark squares} (29... f6 $2 30. Qxf6 Qc5+ 31. Rf2 $18) 30. Rf2 {aiming for Qe5.} Rac8 {[%emt 0:00:44]} 31. Qe3 {[%emt 0:02:33]} (31. Qe5 $16) 31... Qb6 {[%emt 0:02:48]} 32. Qxd3 {[%emt 0:02:05]} (32. Qe5 {keeps more tension.} a5 33. Qf6 Rc7 34. Re5) 32... Rxe6 {[%emt 0:03:42]} 33. Rxe6 {[%emt 0:00:08]} Qxe6 {[%emt 0:00:04]} 34. Re2 {[%emt 0:00:22]} Qb6+ {[%emt 0:00:14]} 35. Kh1 {[%emt 0:02:25]} Rc4 {[%emt 0:02:14]} (35... Rc7 $16) 36. Re7+ $18 {[%emt 0:01:03] White attacks} Kg8 {[%emt 0:00:27]} 37. Qg3 $40 {[%emt 0:01:29][%mdl 128] White is out for blood. White has more active pieces.} Qxb2 $2 {[%emt 0:02:21][%mdl 8192] Loses the game.} (37... f4 $16 38. Qd3 (38. Bxf4 Qf6 $11) 38... a6 (38... Re4 39. Rxe4 dxe4 40. Qc4+ Kg7 41. Bxf4 $16)) 38. h3 {[%emt 0:00:47] White wants to mate with Qd6.} (38. Qb8+ Rc8 39. Re8+ (39. Qxb7 {gets mated.} Qa1+) (39. Qxa7 $2 d4 $19) 39... Kf7 40. Re7+ (40. Rxc8 $2 Qb1+) 40... Kg8 41. Re8+ Kf7 42. Re7+ Kg8 $14) 38... d4 {[%emt 0:02:18][%cal Ob2g2] [#]} 39. Bd2 $1 {[%emt 0:01:10][%mdl 512]} Qb1+ {[%emt 0:03:16]} 40. Kh2 {[%emt 0:00:25]} f4 {[%emt 0:00:04]} 41. Qxf4 {[%emt 0:00:27]} Qf5 {[%emt 0:00:37]} 42. Qxf5 $2 {[%emt 0:00:34]} ({Not} 42. cxd4 Qxf4+ 43. Bxf4 Rxd4 $14) (42. Qh6 {[%csl Ge7][%cal Rh6g7]} Qf7 43. Rxf7 Kxf7 44. Qh7+ Kf6 45. Qxb7 dxc3 46. Be3) 42... gxf5 {[%emt 0:00:02]} 43. Rxb7 {[%emt 0:00:14]} dxc3 {[%emt 0:00:05][%mdl 4096] Endgame KRB-KR} 44. Bc1 {[%emt 0:00:09]} a5 {[%emt 0:00:56][%cal Ba7a5,Ba5a4][%mdl 32]} 45. Rb5 {[%emt 0:00:11]} a4 {[%emt 0:00:07]} 46. Rxf5 {[%emt 0:00:11] White is clearly winning.} h4 {[%emt 0:00:04]} 47. Rf4 {[%emt 0:00:07]} Rxf4 {[%emt 0:00:06]} (47... Rc5 $142 48. Rxa4 (48. Rxh4 a3 $18) 48... Kf7 49. Rxh4 Ke6) 48. Bxf4 {[%emt 0:00:02] KB-K3P} Kf7 {[%emt 0:00:17]} 49. Bc1 {[%emt 0:00:09]} Kg6 {[%emt 0:00:05]} 50. g4 {[%emt 0:00:09]} hxg3+ {[%emt 0:00:09]} 51. Kxg3 {[%emt 0:00:04]} Kf5 {[%emt 0:00:05]} 52. Kf3 {[%emt 0:00:20]} Ke5 {[%emt 0:00:06]} 53. h4 {[%emt 0:00:10]} Kd4 {[%emt 0:00:05]} 54. Ke2 {[%emt 0:00:03] Weighted Error Value: White=0.50/Black=0.81  Loses game:     	---       	Black=1      Mistake:       	White=1     	Black=3      Inaccurate:     	White=4     	Black=5      OK:         	White=16    	Black=11     Best:        	---       	Black=3      Strong:       	White=2     	Black=3} 1-0